bitfinex/quotes_ETHUSD_20241022
["timestamp","ask_amount","ask_price","bid_price","bid_amount"]
[1729585993234,8.66974574,2634.3,2634.2,2.0]
[1729585993549,4.87367574,2634.3,2634.2,2.0048852]
[1729585994199,0.55,2634.3,2634.2,2.0048852]
[1729585994491,8.14637,2634.3,2634.2,2.0048852]
[1729585994699,11.5046353,2634.3,2634.2,2.0048852]
[1729585994907,11.5046353,2634.3,2634.2,1.8848852]
[1729585994908,0.94322904,2634.3,2634.2,1.8848852]
[1729585995067,0.55,2634.3,2634.2,1.8848852]
[1729585995266,3.0,2634.5,2634.2,1.8848852]
[1729585995501,0.67553363,2634.5,2634.2,1.8848852]
[1729585996011,3.0,2634.3,2634.2,1.8848852]
[1729585996215,6.79607,2634.3,2634.2,1.8848852]
[1729585996415,3.0,2634.3,2634.2,1.8848852]
[1729585996634,3.55,2634.3,2634.2,1.8848852]
[1729585996774,4.35214936,2634.3,2634.2,1.8848852]
[1729585997430,8.14821936,2634.3,2634.2,1.8848852]
[1729585998181,8.92341936,2634.3,2634.2,1.8848852]
[1729586002504,8.92341936,2634.3,2634.2,0.31706197]
[1729586002706,8.92341936,2634.3,2634.0,0.01890566]
[1729586002707,8.12646,2634.1,2634.0,0.01890566]
[1729586002932,3.79694,2633.7,2633.4,2.0]
[1729586003106,3.0,2633.6,2633.5,0.04553389]
[1729586003312,4.229694,2633.6,2633.5,0.04553389]
[1729586003737,11.48555962,2633.6,2633.5,0.04553389]
[1729586004046,0.55,2633.5,2633.4,2.0]
[1729586004620,0.55,2633.6,2633.5,0.7799]
[1729586004806,6.45878562,2633.7,2633.5,0.7799]
[1729586005010,8.15228,2633.6,2633.5,0.04569628]
[1729586005543,7.34722,2633.5,2633.4,2.0]
[1729586005705,10.80600562,2633.5,2633.4,2.0]
[1729586006136,10.81600562,2633.5,2633.4,2.0]
[1729586006448,10.81600562,2633.5,2632.6,0.757]
[1729586006449,3.0,2632.8,2632.6,0.757]
[1729586006747,3.0,2632.8,2632.7,0.04549566]
[1729586007622,3.45878562,2633.2,2632.7,0.04549566]
[1729586007820,3.0,2633.4,2632.8,3.79823]
[1729586008022,3.0,2633.4,2632.9,0.7593]
[1729586008318,3.0,2633.4,2632.9,0.80491806]
[1729586008916,3.0,2633.4,2632.9,4.60299806]
[1729586009135,4.02554556,2633.7,2633.1,3.7977]
[1729586009321,1.02554556,2633.7,2633.4,0.7731]
[1729586009521,0.01890566,2633.9,2633.5,0.04541099]
[1729586009752,3.79662,2634.0,2633.5,0.04541099]
[1729586010046,0.39278733,2633.9,2633.5,0.04541099]
[1729586010420,8.05087562,2634.4,2633.6,3.79696]
[1729586010421,3.79599,2634.4,2633.6,3.79696]
[1729586010749,3.79608,2634.3,2633.7,0.81830856]
[1729586010951,1.10508556,2634.2,2633.7,0.81830856]
[1729586011759,0.55,2634.1,2633.7,0.81830856]
[1729586011905,1.10508556,2634.2,2633.7,0.81830856]
[1729586013258,0.01890566,2635.1,2634.1,3.79636]
[1729586013457,0.40597457,2635.5,2634.8,0.7772]
[1729586013458,0.01890566,2635.3,2634.8,0.7772]
[1729586013631,3.85476019,2635.5,2634.8,0.7772]
[1729586013632,3.79479,2635.2,2634.8,0.7772]
[1729586013827,3.79479,2635.2,2634.9,0.04448157]
[1729586013828,0.379479,2635.1,2634.9,0.04448157]
[1729586014629,3.79462,2635.4,2634.9,0.04448157]
[1729586014630,3.55,2635.3,2634.9,0.04448157]
[1729586014832,3.0,2635.3,2634.9,0.04448157]
[1729586015039,3.45878562,2635.5,2635.0,3.79505]
[1729586015349,3.45878562,2635.8,2635.1,0.04396628]
[1729586015547,3.45878562,2636.1,2635.1,0.04396628]
[1729586015862,0.7875,2636.2,2634.9,3.79512]
[1729586015863,7.25269562,2635.8,2634.9,7.59024]
[1729586016021,7.25269562,2635.8,2634.9,3.79512]
[1729586016218,3.45878562,2635.8,2635.1,3.79488]
[1729586016420,3.45878562,2635.8,2635.2,0.8106]
[1729586016657,0.55,2635.7,2635.2,0.85383029]
[1729586016848,0.95087856,2635.7,2635.2,0.85383029]
[1729586017424,0.40087856,2635.7,2635.2,0.85383029]
[1729586017619,3.0,2635.3,2635.2,0.04323029]
[1729586017864,6.79463,2635.3,2635.2,0.04323029]
[1729586018023,6.79463,2635.3,2634.6,0.7882]
[1729586018364,7.25319562,2635.5,2634.7,0.04151951]
[1729586018365,6.79505,2635.1,2634.7,0.04151951]
[1729586018658,0.55,2635.0,2634.7,0.04151951]
[1729586019316,0.55,2635.1,2634.7,0.04151951]
[1729586019518,3.79509,2635.0,2634.7,0.04151951]
[1729586019818,0.55,2635.1,2634.7,0.04151951]
[1729586020019,0.4229463,2635.0,2634.7,0.04151951]
[1729586020834,0.679463,2635.2,2634.7,3.83696951]
[1729586021062,4.60651,2635.6,2634.7,0.04151951]
[1729586021354,3.79457,2635.4,2634.7,0.04151951]
[1729586021734,4.60644,2635.6,2634.8,3.79529]
[1729586021933,0.40087856,2635.7,2634.9,0.82585057]
[1729586022145,0.40087856,2635.7,2635.0,3.79504]
[1729586022319,0.76536242,2635.6,2635.0,3.79504]
[1729586022520,0.76536242,2635.6,2635.1,0.04138164]
[1729586023130,0.76536242,2635.6,2635.1,3.79489]
[1729586023434,0.76536242,2635.6,2635.2,0.04134718]
[1729586023637,0.40087856,2635.7,2635.2,0.04134718]
[1729586023929,0.55,2635.6,2635.2,0.04134718]
[1729586024160,0.55,2635.6,2635.0,3.79497]
[1729586024327,3.45878562,2635.5,2635.3,0.04131272]
[1729586024521,0.55,2635.3,2634.9,0.7844]
[1729586024753,7.34494,2635.1,2635.0,0.0414161]
[1729586025062,3.55,2635.0,2634.5,0.7922]
[1729586025557,3.55,2635.0,2634.6,0.04155398]
[1729586026118,0.55,2635.0,2634.6,0.04155398]
[1729586026347,0.355,2634.9,2634.6,3.83718398]
[1729586026562,0.55,2635.1,2634.6,0.04155398]
[1729586027602,3.55,2635.1,2634.5,0.7922]
[1729586027817,11.14006,2635.1,2634.5,0.7922]
[1729586028109,11.14006,2635.1,2633.8,3.79674]
[1729586028110,8.10929,2634.7,2634.6,0.04160608]
[1729586028259,8.10929,2634.7,2633.7,0.80100566]
[1729586028260,3.0,2634.1,2633.7,0.80100566]
[1729586028593,3.0,2633.8,2633.4,0.7821]
[1729586028818,3.0,2634.0,2633.8,0.0368045]
[1729586029097,0.55,2633.9,2633.4,0.7821]
[1729586029694,3.55,2633.6,2633.0,0.7507]
[1729586029862,1.284703,2633.6,2633.0,4.54862]
[1729586030302,4.284703,2633.6,2633.0,0.7507]
[1729586031915,4.284703,2633.6,2632.6,0.76960566]
[1729586031916,3.0,2633.2,2632.6,0.76960566]
[1729586032145,4.59505,2633.5,2632.8,3.79813]
[1729586032146,3.7978,2633.5,2632.8,3.79813]
[1729586032429,3.45878562,2633.6,2632.8,3.79813]
[1729586032430,7.34709,2633.6,2632.8,3.79813]
[1729586032845,7.34709,2633.6,2632.9,3.79807]
[1729586033127,8.461479,2633.6,2632.9,3.79807]
[1729586033302,8.461479,2633.6,2632.8,3.79813]
[1729586033303,8.461479,2633.6,2632.8,7.59628]
[1729586033689,8.461479,2633.6,2632.8,3.79813]
[1729586033933,11.92026462,2633.6,2632.8,3.79813]
[1729586034297,11.92026462,2633.6,2632.9,0.7896]
[1729586034496,1.19202646,2633.5,2632.9,0.7896]
[1729586034722,7.57317462,2633.6,2633.0,3.79794]
[1729586034935,7.57317462,2633.6,2632.8,3.79809]
[1729586034936,4.587,2632.2,2632.1,0.1280736]
[1729586035117,4.587,2632.2,2630.7,0.8188]
[1729586035118,3.79952,2632.0,2630.7,0.8188]
[1729586035430,3.79952,2632.0,2631.0,0.0760036]
[1729586035431,3.79968,2631.8,2631.0,0.0760036]
[1729586035636,3.79968,2631.8,2630.8,3.80103]
[1729586035637,3.76884174,2631.8,2630.7,4.62004]
[1729586035792,7.56852174,2631.8,2630.8,3.80101]
[1729586035988,7.65773911,2631.8,2630.7,4.62004]
[1729586036235,7.65773911,2631.8,2630.4,0.8188]
[1729586036236,6.79996,2631.6,2630.4,0.8188]
[1729586036406,6.79996,2631.6,2631.5,0.005]
[1729586036407,10.34796299,2631.6,2631.5,0.005]
[1729586036737,11.82818409,2631.6,2631.5,0.005]
[1729586037136,12.72475964,2631.6,2631.5,0.005]
[1729586037339,12.37818409,2631.6,2631.5,0.005]
[1729586038199,12.77038154,2631.6,2631.5,0.005]
[1729586045746,12.37818409,2631.6,2631.5,0.005]
[1729586045914,3.45878562,2631.9,2631.5,0.005]
[1729586046117,0.08921737,2631.8,2631.6,0.03755308]
[1729586046728,0.08921737,2631.8,2631.6,3.83748308]
[1729586047068,0.08921737,2631.8,2631.7,3.79982]
[1729586047372,3.45878562,2632.2,2631.8,3.79961]
[1729586047373,0.08921737,2632.1,2631.8,3.79961]
[1729586047672,0.08921737,2632.1,2631.9,0.03804107]
[1729586047826,3.45878562,2632.2,2631.9,0.03804107]
[1729586048033,0.08921737,2632.1,2631.9,3.79939]
[1729586048243,0.08921737,2632.1,2632.0,0.03800652]
[1729586048531,0.08921737,2632.1,2631.8,3.79956]
[1729586048935,0.08921737,2632.1,2631.9,0.03794242]
[1729586049132,0.08921737,2632.1,2631.9,3.79951]
[1729586049380,0.08921737,2632.3,2632.1,3.79924]
[1729586049582,0.08921737,2632.4,2632.2,0.0378388]
[1729586049864,0.08921737,2632.4,2632.2,3.8369088]
[1729586050073,0.08921737,2632.4,2632.2,0.0378388]
[1729586050857,0.08921737,2632.4,2632.2,3.8368988]
[1729586051155,0.08921737,2632.4,2632.2,0.0378388]
[1729586051678,0.46964536,2632.4,2631.8,3.79965]
[1729586051887,0.46964536,2632.4,2632.3,0.03780426]
[1729586052083,0.46964536,2632.4,2631.8,3.79965]
[1729586052285,3.45878562,2632.1,2631.7,4.61229]
[1729586052455,0.08921737,2632.0,2631.8,3.79967]
[1729586052853,0.08921737,2632.0,2631.7,4.61229]
[1729586053043,0.08921737,2632.2,2631.7,4.61229]
[1729586053238,0.08921737,2632.2,2631.8,3.79965]
[1729586053474,0.08921737,2632.2,2631.9,3.79948]
[1729586053674,0.53706047,2632.2,2632.0,3.79932]
[1729586054052,0.53706047,2632.2,2632.1,3.79924]
[1729586054256,0.08921737,2632.2,2632.1,3.79924]
[1729586054453,3.83921361,2632.4,2632.1,3.79924]
[1729586054454,0.08921737,2632.3,2632.1,3.79924]
[1729586054772,0.08921737,2632.3,2632.2,3.7991]
[1729586055281,0.08921737,2632.4,2632.3,3.79895]
[1729586055467,0.23737125,2632.5,2632.4,3.79881]
[1729586055640,0.23737125,2632.5,2632.3,8.35061]
[1729586055845,0.23737125,2632.5,2632.4,3.79881]
[1729586057316,0.23737125,2632.5,2632.4,4.633857]
[1729586057893,0.23737125,2632.5,2632.4,5.54482011]
[1729586058100,0.23737125,2632.5,2632.4,5.468857]
[1729586060289,0.08921737,2633.7,2632.5,0.01]
[1729586060459,0.75677731,2633.9,2632.4,4.643857]
[1729586060460,0.08921737,2633.9,2633.5,3.79722]
[1729586060663,0.08921737,2633.9,2633.0,0.8285]
[1729586060664,0.08921737,2633.9,2633.2,3.79759]
[1729586060889,3.54800299,2633.9,2633.2,3.79757]
[1729586061113,0.7344603,2633.8,2633.2,7.59514]
[1729586061252,0.08921737,2633.7,2633.3,3.79748]
[1729586061458,0.39607191,2635.4,2635.3,3.79463]
[1729586061658,0.39607191,2635.4,2635.3,4.63313]
[1729586061911,0.39320734,2635.4,2635.3,5.38828819]
[1729586062201,2.24974597,2635.4,2635.3,4.61251255]
[1729586062354,2.24974597,2635.4,2635.2,0.01]
[1729586062355,4.23798562,2635.9,2635.2,0.01]
[1729586062556,4.23798562,2635.9,2634.9,3.79519]
[1729586062557,0.63860255,2635.6,2634.9,3.79519]
[1729586062777,8.03176562,2635.9,2635.1,3.78294106]
[1729586063062,8.03176562,2635.9,2635.2,3.79477]
[1729586063359,1.34149139,2635.8,2635.2,3.79477]
[1729586063755,1.34149139,2635.8,2635.2,3.78037095]
[1729586063996,0.85211427,2635.8,2635.2,3.78037095]
[1729586064362,0.85211427,2635.8,2635.1,3.78294106]
[1729586064956,0.85211427,2635.8,2635.1,3.6704282]
[1729586065167,7.57298,2635.9,2634.9,3.79515]
[1729586065168,0.84250943,2635.7,2635.0,3.79503]
[1729586065901,0.84250943,2635.7,2635.0,3.78121341]
[1729586066106,4.63666943,2635.7,2634.8,0.01]
[1729586066314,3.79444,2635.5,2634.7,3.79544]
[1729586067065,3.79444,2635.5,2634.7,3.78502885]
[1729586067413,7.25788694,2635.6,2634.8,3.79524]
[1729586067925,3.79436,2635.5,2634.7,3.78502885]
[1729586068069,3.79436,2635.5,2634.5,4.63864]
[1729586068070,6.79461,2635.4,2634.6,3.78493783]
[1729586068268,0.8137,2635.2,2634.3,7.60199]
[1729586068577,0.8137,2635.2,2634.3,3.79597]
[1729586068578,3.79519,2635.0,2634.3,3.79597]
[1729586069125,3.79519,2635.0,2634.3,3.78294303]
[1729586069424,4.34505,2635.1,2634.3,3.78294303]
[1729586069726,3.79521,2634.9,2634.3,3.78294303]
[1729586070085,0.515875,2635.0,2634.3,3.77152521]
[1729586070289,0.8137,2635.2,2634.3,3.78152521]
[1729586070290,3.8137,2635.2,2634.3,3.78152521]
[1729586070486,3.8137,2635.2,2634.5,3.79572]
[1729586070487,7.6086,2635.2,2634.5,3.79572]
[1729586071128,3.79501,2635.1,2634.3,3.77152521]
[1729586071597,3.79508,2635.0,2634.3,3.77152521]
[1729586071804,3.79508,2635.0,2634.3,3.78152521]
[1729586072110,4.935459,2635.0,2634.3,3.77152521]
[1729586072419,4.935459,2635.0,2634.3,3.76012428]
[1729586072829,1.140379,2635.0,2634.3,3.76012428]
[1729586073127,1.140379,2635.0,2634.4,3.79591]
[1729586073301,1.140379,2635.0,2634.4,3.78444304]
[1729586073826,4.935459,2635.0,2634.3,3.76012428]
[1729586074031,0.50733178,2634.9,2634.3,3.76012428]
[1729586074229,3.79551,2634.7,2634.2,0.00752515]
[1729586074428,3.79551,2634.7,2634.1,3.79632]
[1729586074639,3.0,2634.8,2634.1,3.79632]
[1729586074794,4.14916197,2634.8,2634.2,3.79619]
[1729586075189,4.14916197,2634.8,2634.0,3.80649]
[1729586075409,4.14916197,2634.8,2634.0,3.77418933]
[1729586075595,4.14916197,2634.8,2634.2,3.79621]
[1729586075930,7.94452197,2634.8,2634.0,3.77418933]
[1729586076135,1.1739762,2634.7,2634.0,7.57060933]
[1729586076530,4.9694762,2634.7,2634.0,7.54356471]
[1729586076758,4.9694762,2634.7,2634.1,3.79625]
[1729586077330,1.1739762,2634.7,2634.1,3.79625]
[1729586077536,1.1739762,2634.7,2634.2,3.79618]
[1729586077735,3.79524,2634.9,2634.1,3.7909185]
[1729586077933,3.79524,2634.9,2634.3,3.79607]
[1729586078760,3.79524,2634.9,2634.3,3.78022994]
[1729586079131,3.79524,2634.9,2634.1,3.7963]
[1729586079132,3.7955,2634.7,2634.1,3.7963]
[1729586079527,7.59059,2634.9,2634.2,3.79619]
[1729586079865,4.554439,2634.8,2634.2,3.79619]
[1729586080650,3.79552,2634.7,2634.1,3.76380782]
[1729586080847,3.79552,2634.7,2634.2,3.79618]
[1729586081053,3.79552,2634.7,2634.1,3.76380782]
[1729586081529,3.79552,2634.7,2634.1,3.74471925]
[1729586081722,4.6305049,2634.7,2634.1,7.54097925]
[1729586081926,3.79564,2634.6,2634.1,3.74471925]
[1729586082129,3.79581,2634.5,2633.8,0.01]
[1729586082655,3.79581,2634.5,2633.8,3.79678]
[1729586082656,3.79609,2634.3,2633.8,3.79678]
[1729586082853,3.79581,2634.5,2633.9,3.79653]
[1729586083070,4.637807,2634.5,2633.9,7.59309]
[1729586083264,3.79595,2634.4,2633.9,3.79653]
[1729586083632,3.79595,2634.4,2633.9,3.7089871]
[1729586084306,3.79611,2634.3,2633.7,4.51914687]
[1729586084667,3.79595,2634.4,2633.7,4.50239064]
[1729586084971,3.79608,2634.3,2633.7,4.50239064]
[1729586085702,3.7963,2634.2,2633.7,3.79691]
[1729586086199,3.79608,2634.3,2633.7,7.59376]
[1729586086561,3.79608,2634.3,2633.7,7.5937]
[1729586087196,4.3426547,2634.4,2633.7,3.79685]
[1729586087588,4.3426547,2634.4,2633.8,3.79676]
[1729586087811,4.3426547,2634.4,2633.8,3.79534928]
[1729586088119,0.5466547,2634.4,2634.1,3.79635]
[1729586088323,7.62424,2634.6,2634.0,3.79642]
[1729586088482,7.62424,2634.6,2634.1,0.07591839]
[1729586088683,7.62424,2634.6,2634.0,3.79641]
[1729586089221,3.79578,2634.5,2633.8,3.79671]
[1729586089986,3.79578,2634.5,2634.0,3.79641]
[1729586090210,3.8286,2634.6,2634.0,7.5928]
[1729586090377,4.98824791,2634.6,2634.0,3.79639]
[1729586090720,8.78392791,2634.6,2634.0,3.79639]
[1729586091222,3.7958,2634.5,2633.9,3.79663]
[1729586091383,3.79595,2634.4,2633.8,3.79667]
[1729586091730,3.79595,2634.4,2633.8,7.59337]
[1729586092219,3.79595,2634.4,2633.9,3.79663]
[1729586092382,3.79595,2634.4,2633.8,3.79667]
[1729586092582,3.79595,2634.4,2633.8,7.59338]
[1729586092778,3.79595,2634.4,2633.8,3.79667]
[1729586093077,5.05394979,2634.4,2633.8,3.79667]
[1729586094227,5.05394979,2634.4,2633.8,7.59338]
[1729586094881,5.05394979,2634.4,2633.9,3.79665]
[1729586095522,0.8286,2634.6,2634.0,0.0759186]
[1729586095723,0.8286,2634.6,2633.7,4.59108]
[1729586096029,0.4219134,2634.7,2634.3,3.79599]
[1729586096327,0.4219134,2634.7,2634.5,3.79578]
[1729586096483,0.4219134,2634.7,2634.6,3.79564]
[1729586097224,0.45089299,2634.7,2634.6,3.79564]
[1729586098124,0.48533715,2634.7,2634.6,3.79564]
[1729586099188,0.56162507,2634.7,2634.6,3.79564]
[1729586100236,0.67399037,2634.7,2634.6,3.79564]
[1729586100924,0.67399037,2634.7,2634.5,3.79577]
[1729586101135,0.67399037,2634.7,2634.6,3.79564]
[1729586101136,0.71091969,2634.7,2634.6,3.79564]
[1729586102029,0.74969314,2634.7,2634.4,3.79585]
[1729586102230,0.74969314,2634.7,2634.4,4.79413535]
[1729586102950,0.74969314,2634.7,2634.5,3.79565]
[1729586104314,0.74969314,2634.7,2634.6,3.79564]
[1729586104511,0.74969314,2634.7,2634.5,3.79565]
[1729586106259,0.74969314,2634.7,2634.6,3.79564]
[1729586106551,0.74969314,2634.7,2634.5,3.79565]
[1729586106927,0.74969314,2634.7,2634.6,3.79564]
[1729586107134,0.74969314,2634.7,2634.5,3.79565]
[1729586107660,0.74969314,2634.7,2634.3,3.79598]
[1729586107857,3.79564,2634.6,2634.0,1.98417166]
[1729586108010,2.38823845,2634.7,2633.9,4.62586]
[1729586108011,3.79594,2634.4,2633.9,4.62586]
[1729586108212,3.79594,2634.4,2633.9,3.79656]
[1729586108456,3.79594,2634.4,2633.7,5.78102166]
[1729586108457,3.79594,2634.4,2633.7,5.78098166]
[1729586108622,3.79594,2634.4,2633.6,0.8293]
[1729586108623,4.55419314,2634.7,2633.6,0.8293]
[1729586108822,3.79623,2634.2,2633.7,3.79682]
[1729586109224,3.79623,2634.2,2633.6,4.62636]
[1729586109225,0.8267,2634.1,2633.6,4.62636]
[1729586110433,0.8267,2634.1,2633.6,3.79706]
[1729586110750,0.8267,2634.1,2633.3,2.81541281]
[1729586110751,0.8267,2634.1,2633.3,3.79741]
[1729586110930,3.7969,2633.8,2633.3,3.79741]
[1729586111112,3.7969,2633.8,2633.2,0.01890566]
[1729586111113,3.79694,2633.7,2633.2,0.01890566]
[1729586111316,3.79658,2634.0,2633.4,3.79725]
[1729586111539,3.79658,2634.0,2633.5,3.87308577]
[1729586111956,3.79658,2634.0,2633.5,0.07593577]
[1729586112162,3.79658,2634.0,2633.4,3.79725]
[1729586112321,3.79677,2633.9,2633.2,4.26771257]
[1729586112517,3.79658,2634.0,2633.2,4.25771257]
[1729586112718,3.7972,2633.6,2633.0,8.37102]
[1729586112959,3.7972,2633.6,2632.6,6.19528537]
[1729586112960,3.79738,2633.4,2632.8,3.79815]
[1729586113119,3.79738,2633.4,2632.7,0.79]
[1729586113324,3.79755,2633.3,2632.8,3.79819]
[1729586113669,3.79738,2633.4,2632.4,4.58873]
[1729586113670,3.79766,2633.2,2632.4,4.58873]
[1729586114013,3.0,2633.4,2632.7,3.79826]
[1729586114014,1.152966,2633.1,2632.7,3.79826]
[1729586114144,0.7732,2633.1,2632.8,3.79813]
[1729586114351,0.7732,2633.1,2632.7,3.79826]
[1729586114722,0.7732,2633.1,2632.8,3.79814]
[1729586115154,0.7732,2633.1,2632.8,3.7982]
[1729586115358,0.7732,2633.1,2632.8,3.87415469]
[1729586116468,6.79743,2633.4,2633.0,3.79786]
[1729586116469,0.7867,2633.4,2633.0,3.79786]
[1729586116758,0.37867,2633.3,2632.8,3.79811]
[1729586116971,0.37867,2633.3,2632.8,7.59626]
[1729586117127,0.37867,2633.3,2632.9,3.87401362]
[1729586117620,0.37867,2633.3,2632.4,4.61629]
[1729586117621,3.0,2633.2,2632.4,4.60619]
[1729586117827,3.0,2633.2,2632.2,7.59803]
[1729586117828,3.79803,2633.0,2632.2,7.59803]
[1729586118056,3.79818,2632.9,2632.2,7.59803]
[1729586118229,3.79818,2632.9,2632.1,0.77200566]
[1729586118230,0.01,2632.9,2632.1,0.01890566]
[1729586118423,3.79861,2632.6,2632.1,0.01890566]
[1729586118663,0.836352,2632.6,2632.1,0.01890566]
[1729586118850,0.836352,2632.6,2632.1,3.81806566]
[1729586119055,4.634882,2632.6,2632.1,3.81806566]
[1729586119251,4.634882,2632.6,2632.1,0.01890566]
[1729586119435,4.56541,2632.4,2632.1,0.01890566]
[1729586119764,3.7766,2632.4,2632.1,0.01890566]
[1729586121664,3.7666,2632.4,2632.1,3.81802566]
[1729586121865,0.7666,2632.4,2632.2,3.79909]
[1729586122181,0.01,2633.2,2632.6,3.79852]
[1729586122489,0.762,2633.0,2632.7,3.79829]
[1729586123363,0.762,2633.4,2633.0,3.79782]
[1729586123992,4.56032,2632.8,2632.3,0.115]
[1729586124202,3.80864,2632.6,2632.3,0.115]
[1729586124506,0.8236,2632.4,2632.3,0.115]
[1729586125204,0.01,2632.6,2632.3,0.115]
[1729586125379,3.0,2632.8,2632.4,3.79871]
[1729586125380,0.8031,2632.8,2632.4,3.79871]
[1729586126016,0.01,2633.1,2632.6,3.79839]
[1729586126175,3.0,2633.2,2632.3,0.115]
[1729586126176,4.60191,2632.4,2632.3,0.115]
[1729586126908,7.60191,2632.4,2632.3,0.115]
[1729586127115,7.60191,2632.4,2632.3,0.005]
[1729586127412,8.15191,2632.4,2632.3,0.005]
[1729586128569,3.8031,2632.4,2632.3,0.005]
[1729586129301,0.8031,2632.4,2632.3,0.005]
[1729586129502,0.7613,2632.7,2632.3,0.005]
[1729586129840,0.7613,2632.7,2632.3,3.80385]
[1729586130016,0.7613,2632.7,2632.3,0.005]
[1729586130545,0.7613,2632.7,2632.3,3.80395]
[1729586130837,0.7613,2632.7,2632.3,0.005]
[1729586131212,4.55969,2632.7,2632.3,0.005]
[1729586131417,5.696477,2632.7,2632.3,0.005]
[1729586131613,0.7613,2632.7,2632.3,0.005]
[1729586131951,0.8298,2633.0,2632.5,3.79863]
[1729586132247,0.01,2633.2,2632.6,3.88885253]
[1729586132552,3.80773,2633.2,2632.6,3.88885253]
[1729586132899,0.01,2633.2,2632.8,3.79822]
[1729586133103,0.7982,2633.3,2632.8,3.79816]
[1729586133355,4.42100551,2633.5,2633.0,3.79785]
[1729586133639,4.42100551,2633.5,2633.1,0.09025872]
[1729586133640,3.80724,2633.5,2633.1,0.09025872]
[1729586134244,1.19237981,2633.6,2633.2,3.79758]
[1729586134480,0.01,2633.7,2633.3,3.88766522]
[1729586134780,3.0,2633.6,2633.3,0.09018522]
[1729586135135,3.0,2633.6,2633.1,3.7977]
[1729586135462,3.0,2633.6,2632.5,0.01]
[1729586135463,4.57672,2633.5,2632.7,3.79831]
[1729586135664,3.79751,2633.3,2632.8,0.09009073]
[1729586136157,3.79751,2633.3,2632.7,7.59656]
[1729586136158,3.79751,2633.3,2632.7,7.59655]
[1729586136369,4.57672,2633.5,2632.9,0.08997283]
[1729586136672,4.57672,2633.5,2632.3,3.80391]
[1729586136673,3.79823,2632.8,2632.3,0.005]
[1729586137074,3.79833,2632.8,2632.3,0.005]
[1729586137285,3.79838,2632.7,2632.3,0.005]
[1729586137464,0.7678,2632.6,2632.3,0.005]
[1729586137670,6.79881,2632.4,2632.3,0.005]
[1729586137973,7.555471,2632.4,2632.3,0.005]
[1729586138778,8.384471,2632.4,2632.3,0.005]
[1729586138954,8.934471,2632.4,2632.3,0.005]
[1729586144794,4.6053,2632.2,2632.1,0.01890566]
[1729586144954,8.15544,2632.1,2632.0,0.005]
[1729586146957,7.60544,2632.1,2632.0,0.005]
[1729586147154,0.39320582,2632.1,2632.0,0.005]
[1729586147454,0.39320582,2632.1,2632.0,0.08753912]
[1729586147455,3.80924,2632.1,2632.0,0.08753912]
[1729586147698,4.570074,2632.1,2632.0,0.08753912]
[1729586149193,4.570074,2632.1,2632.0,0.005]
[1729586149598,5.345174,2632.1,2632.0,0.005]
[1729586151505,3.7991,2632.2,2632.0,0.005]
[1729586152008,3.80924,2632.1,2632.0,0.005]
[1729586153009,4.35924,2632.1,2632.0,0.005]
[1729586153215,3.80924,2632.1,2632.0,0.005]
[1729586155122,4.63454,2632.1,2632.0,0.005]
[1729586155281,5.477904,2632.1,2632.0,0.005]
[1729586155978,5.467904,2632.1,2632.0,0.005]
[1729586156204,3.7991,2632.2,2632.0,0.005]
[1729586156205,0.01,2632.2,2632.0,0.005]
[1729586156513,0.01,2632.2,2632.1,0.08264125]
[1729586156514,3.80911,2632.2,2632.1,0.08264125]
[1729586162278,0.01,2632.2,2632.1,0.08264125]
[1729586162477,3.0,2632.6,2632.1,0.08264125]
[1729586162478,3.79849,2632.7,2632.2,3.79902]
[1729586162839,3.80826,2632.8,2632.3,3.88137768]
[1729586163045,3.79817,2632.9,2632.3,3.95729954]
[1729586163259,3.79817,2632.9,2632.4,3.7987]
[1729586163459,3.79817,2632.9,2632.4,3.88112091]
[1729586164192,0.01,2633.0,2632.5,3.79857]
[1729586164371,3.80805,2633.0,2632.5,3.79857]
[1729586164687,3.80805,2633.0,2632.6,0.07662173]
[1729586164983,3.79768,2633.2,2632.7,0.819]
[1729586164984,3.80768,2633.2,2632.7,0.819]
[1729586165350,3.80768,2633.2,2632.8,0.07622981]
[1729586165565,3.7978,2633.1,2632.8,0.07622981]
[1729586165779,3.80768,2633.2,2632.7,0.819]
[1729586165780,3.79797,2633.0,2632.7,0.819]
[1729586165962,3.80797,2633.0,2632.9,0.07611781]
[1729586166165,3.80797,2633.0,2632.8,0.07615457]
[1729586166166,3.79809,2632.9,2632.8,0.07615457]
[1729586166366,5.342147,2633.0,2632.4,0.7541]
[1729586166367,3.79849,2632.7,2632.4,0.7541]
[1729586166601,3.79854,2632.6,2632.4,0.7541]
[1729586166897,0.01,2632.3,2631.8,0.78]
[1729586167065,3.79924,2632.1,2631.8,0.78]
[1729586167266,4.50713197,2632.1,2631.8,0.78]
[1729586167484,4.50713197,2632.1,2631.6,0.01890566]
[1729586167799,4.50713197,2632.1,2632.0,0.08141405]
[1729586167980,4.50713197,2632.1,2632.0,0.005]
[1729586168455,4.50713197,2632.1,2632.0,0.08141405]
[1729586170870,4.50713197,2632.1,2632.0,0.005]
[1729586171413,5.05713197,2632.1,2632.0,0.005]
[1729586171615,8.05713197,2632.1,2632.0,0.005]
[1729586172280,7.50713197,2632.1,2632.0,0.005]
[1729586175380,8.82803197,2632.1,2632.0,0.005]
[1729586176309,8.82803197,2632.1,2631.6,0.01890566]
[1729586176310,8.16592,2631.7,2631.6,0.01890566]
[1729586176467,8.16592,2631.7,2631.5,0.005]
[1729586176468,7.34996,2631.6,2631.5,0.005]
[1729586177685,7.74223828,2631.6,2631.5,0.005]
[1729586179426,8.55833828,2631.6,2630.9,2.0]
[1729586179594,8.55833828,2631.6,2630.5,0.01890566]
[1729586179595,5.15751,2630.6,2630.5,0.01890566]
[1729586179793,0.8061,2630.6,2629.8,0.9199]
[1729586179995,3.80179,2630.4,2629.8,4.72238]